Workbook

Sheet Arkusz1
A1: RYNEK WTÓRNY
B2: 2022 | C2: 2023 | D2: 2024 | E2: 2025/* | F2: RAZEM
A4: I. Stare Miasto | B4: 507 | C4: 493 | D4: 464 | E4: 274 | F4: =SUM(B4:E4) -> 1738
A5: II. Grzegórzki | B5: 401 | C5: 392 | D5: 387 | E5: 206 | F5: =SUM(B5:E5) -> 1386
A6: III. Prądnik Czerwony | B6: 392 | C6: 392 | D6: 403 | E6: 231 | F6: =SUM(B6:E6) -> 1418
A7: IV. Prądnik Biały | B7: 719 | C7: 1258 | D7: 864 | E7: 513 | F7: =SUM(B7:E7) -> 3354
A8: V. Krowodrza | B8: 374 | C8: 420 | D8: 378 | E8: 226 | F8: =SUM(B8:E8) -> 1398
A9: VI. Bronowice | B9: 246 | C9: 247 | D9: 274 | E9: 135 | F9: =SUM(B9:E9) -> 902
A10: VII. Zwierzyniec | B10: 123 | C10: 130 | D10: 141 | E10: 95 | F10: =SUM(B10:E10) -> 489
A11: VIII. Dębniki | B11: 584 | C11: 562 | D11: 645 | E11: 385 | F11: =SUM(B11:E11) -> 2176
A12: IX. Łagiewniki – Borek Fałęcki | B12: 97 | C12: 110 | D12: 111 | E12: 72 | F12: =SUM(B12:E12) -> 390
A13: X. Swoszowice | B13: 154 | C13: 149 | D13: 144 | E13: 112 | F13: =SUM(B13:E13) -> 559
A14: XI. Podgórze Duchackie | B14: 337 | C14: 357 | D14: 292 | E14: 210 | F14: =SUM(B14:E14) -> 1196
A15: XII. Bieżanów – Prokocim | B15: 463 | C15: 508 | D15: 425 | E15: 276 | F15: =SUM(B15:E15) -> 1672
A16: XIII. Podgórze | B16: 522 | C16: 723 | D16: 616 | E16: 412 | F16: =SUM(B16:E16) -> 2273
A17: XIV. Czyżyny | B17: 242 | C17: 287 | D17: 287 | E17: 172 | F17: =SUM(B17:E17) -> 988
A18: XV. Mistrzejowice | B18: 235 | C18: 266 | D18: 229 | E18: 150 | F18: =SUM(B18:E18) -> 880
A19: XVI. Bieńczyce | B19: 255 | C19: 312 | D19: 255 | E19: 165 | F19: =SUM(B19:E19) -> 987
A20: XVII. Wzgórza Krzesławickie | B20: 114 | C20: 102 | D20: 94 | E20: 67 | F20: =SUM(B20:E20) -> 377
A21: XVIII. Nowa Huta | B21: 389 | C21: 450 | D21: 378 | E21: 233 | F21: =SUM(B21:E21) -> 1450
A23: RAZEM | B23: =SUM(B4:B21) -> 6154 | C23: =SUM(C4:C21) -> 7158 | D23: =SUM(D4:D21) -> 6387 | E23: =SUM(E4:E21) -> 3934
E25: /*do sierpnia 2025 roku

Sheet Arkusz2
A1: RYNEK PIERWOTNY
B2: 2022 | C2: 2023 | D2: 2024 | E2: 2025/* | F2: RAZEM
A3: I. Stare Miasto | B3: 317 | C3: 118 | D3: 396 | E3: 208 | F3: =SUM(B3:E3) -> 1039
A4: II. Grzegórzki | B4: 476 | C4: 485 | D4: 502 | E4: 122 | F4: =SUM(B4:E4) -> 1585
A5: III. Prądnik Czerwony | B5: 182 | C5: 329 | D5: 423 | E5: 269 | F5: =SUM(B5:E5) -> 1203
A6: IV. Prądnik Biały | B6: 2070 | C6: 1334 | D6: 1547 | E6: 743 | F6: =SUM(B6:E6) -> 5694
A7: V. Krowodrza | B7: 622 | C7: 424 | D7: 280 | E7: 90 | F7: =SUM(B7:E7) -> 1416
A8: VI. Bronowice | B8: 853 | C8: 358 | D8: 238 | E8: 84 | F8: =SUM(B8:E8) -> 1533
A9: VII. Zwierzyniec | B9: 126 | C9: 191 | D9: 231 | E9: 34 | F9: =SUM(B9:E9) -> 582
A10: VIII. Dębniki | B10: 674 | C10: 476 | D10: 872 | E10: 206 | F10: =SUM(B10:E10) -> 2228
A11: IX. Łagiewniki – Borek Fałęcki | B11: 214 | C11: 18 | D11: 192 | E11: 20 | F11: =SUM(B11:E11) -> 444
A12: X. Swoszowice | B12: 73 | C12: 52 | D12: 58 | E12: 59 | F12: =SUM(B12:E12) -> 242
A13: XI. Podgórze Duchackie | B13: 535 | C13: 390 | D13: 748 | E13: 163 | F13: =SUM(B13:E13) -> 1836
A14: XII. Bieżanów – Prokocim | B14: 773 | C14: 873 | D14: 369 | E14: 179 | F14: =SUM(B14:E14) -> 2194
A15: XIII. Podgórze | B15: 1529 | C15: 1823 | D15: 1330 | E15: 751 | F15: =SUM(B15:E15) -> 5433
A16: XIV. Czyżyny | B16: 629 | C16: 1445 | D16: 565 | E16: 159 | F16: =SUM(B16:E16) -> 2798
A17: XV. Mistrzejowice | B17: 405 | C17: 585 | D17: 342 | E17: 152 | F17: =SUM(B17:E17) -> 1484
A18: XVI. Bieńczyce | B18: 72 | C18: 5 | D18: 40 | E18: 0 | F18: =SUM(B18:E18) -> 117
A19: XVII. Wzgórza Krzesławickie | B19: 143 | C19: 127 | D19: 272 | E19: 81 | F19: =SUM(B19:E19) -> 623
A20: XVIII. Nowa Huta | B20: 14 | C20: 10 | D20: 39 | E20: 3 | F20: =SUM(B20:E20) -> 66
A22: RAZEM | B22: =SUM(B3:B20) -> 9707 | C22: =SUM(C3:C20) -> 9043 | D22: =SUM(D3:D20) -> 8444 | E22: =SUM(E3:E20) -> 3323
E25: /*do sierpnia 2025 roku
